fUST/lending_fUST_20250811
["ID","MTS","AMOUNT","RATE_DAILY","PERIOD"]
[378478489,1754880651065,-2000.0,0.00023626,2]
[378478491,1754880651075,-2000.0,0.00023626,2]
[378478492,1754880651085,-1177.40885409,0.00023626,2]
[378478493,1754880651095,-1721.04145896,0.00023648,2]
[378478494,1754880651105,-2351.0,0.0002366,2]
[378478495,1754880651116,-587.0,0.0002366,2]
[378478496,1754880651126,-469.4,0.00023663,3]
[378478497,1754880651137,-397.514,0.00023672,4]
[378478498,1754880651147,-385.583322,0.00023672,15]
[378478499,1754880651157,-162.185225,0.00023672,15]
[378478500,1754880651168,-557.71042184,0.00023674,2]
[378478501,1754880651178,-883.65,0.00023789,2]
[378478502,1754880651189,-3392.3,0.00023789,2]
[378478503,1754880651199,-460.0,0.0002379,2]
[378478504,1754880651210,-899.15,0.0002379,2]
[378478505,1754880651220,-664.01,0.0002379,2]
[378478506,1754880651229,-460.0,0.0002379,2]
[378478507,1754880651238,-605.76,0.0002379,2]
[378478508,1754880651248,-2032.61,0.0002379,2]
[378478509,1754880651258,-2159.23,0.0002379,2]
[378478510,1754880651267,-551.89,0.0002379,2]
[378478511,1754880651277,-582.02,0.0002379,2]
[378478512,1754880651287,-2233.61,0.0002379,2]
[378478513,1754880651296,-469.06,0.0002379,2]
[378478514,1754880651305,-490.34454265,0.0002379,2]
[378478515,1754880651315,-1051.15,0.0002379,2]
[378478516,1754880651324,-460.0,0.0002379,2]
[378478517,1754880651333,-547.79779119,0.00023791,2]
[378478518,1754880651343,-1880.4,0.00023791,2]
[378478519,1754880651353,-1435.66,0.00023791,2]
[378478520,1754880651363,-460.0,0.00023792,2]
[378478521,1754880651372,-719.33,0.00023792,2]
[378478522,1754880651382,-533.0058297,0.00023792,2]
[378478523,1754880651391,-460.0,0.00023792,2]
[378478524,1754880651401,-1245.76,0.00023792,2]
[378478525,1754880651410,-599.6,0.00023792,2]
[378478526,1754880651420,-608.91,0.00023792,2]
[378478527,1754880651430,-460.0,0.00023792,2]
[378478528,1754880651439,-283.2392618,0.00023792,2]
[378478529,1754880651449,-743.79,0.00023793,2]
[378478530,1754880651458,-460.0,0.00023793,2]
[378478531,1754880651468,-684.54,0.00023794,2]
[378478532,1754880651478,-362.77000003,0.00023794,2]
[378478533,1754880651489,-945.08,0.00023794,2]
[378478534,1754880651499,-1475.15,0.00023794,2]
[378478535,1754880651508,-1832.92,0.00023794,2]
[378478536,1754880651518,-481.99,0.00023794,2]
[378478537,1754880651527,-2083.08,0.00023794,2]
[378478538,1754880651537,-1260.47,0.00023794,2]
[378478539,1754880651547,-151.0,0.000238,10]
[378478540,1754880651556,-660.0,0.00023815,2]
[378478541,1754880651566,-385.583322,0.0002388,7]
[378478542,1754880651575,-385.583322,0.00023882,2]
[378478543,1754880651585,-2351.0,0.00023888,2]
[378478544,1754880651594,-168.0,0.00023891,2]
[378478545,1754880651604,-600.0,0.00023904,2]
[378478546,1754880651614,-469.4,0.00023972,3]
[378478547,1754880651623,-501.12325849,0.00023973,2]
[378478548,1754880651633,-500.0,0.00023973,2]
[378478549,1754880651645,-500.0,0.00023973,2]
[378478550,1754880651654,-500.0,0.00023973,2]
[378478551,1754880651672,-600.0,0.00023973,2]
[378478552,1754880651684,-500.0,0.00023973,2]
[378478553,1754880651694,-500.0,0.00023973,2]
[378478554,1754880651704,-535.9525052,0.00023973,2]
[378478555,1754880651715,-500.0,0.00023973,2]
[378478556,1754880651725,-503.60005483,0.00023973,2]
[378478557,1754880651735,-185.25659566,0.00023973,2]
[378478558,1754880651745,-500.0,0.00023973,2]
[378478559,1754880651756,-612.83555691,0.00023973,2]
[378478560,1754880651765,-500.0,0.00023973,2]
[378478561,1754880651775,-500.0,0.00023973,2]
[378478562,1754880651786,-500.0,0.00023973,2]
[378478563,1754880651796,-500.0,0.00023973,2]
[378478564,1754880651805,-505.589476,0.00023973,2]
[378478565,1754880651816,-500.0,0.00023973,2]
[378478566,1754880651827,-503.03109077,0.00023973,2]
[378478567,1754880651837,-500.0,0.00023973,2]
[378478568,1754880651847,-150.0,0.00023973,2]
[378478569,1754880651859,-2657.95564766,0.00023998,2]
[378478570,1754880651869,-191802.02125082,0.00023998,2]
[378478571,1754880651879,-1700.24749484,0.00024,2]
[378478572,1754880651889,-45447.69152722,0.00024,2]
[378478573,1754880652098,-458.755,0.00019954,2]
[378478574,1754880652258,461.35629799,0.00019953,2]
[378478575,1754880652294,-1.245,0.00019954,2]
[378478576,1754880652478,-325.39430089,0.00019955,2]
[378478577,1754880652496,-134.60569911,0.00019955,2]
[378478578,1754880652506,-4487.04,0.00019957,2]
[378478579,1754880652515,-460.0,0.00020228,2]
[378478580,1754880652525,-460.0,0.00020229,2]
[378478581,1754880652534,-4449.20795487,0.00020231,2]
[378478582,1754880652546,-37.83204513,0.00020231,2]
[378478583,1754880652555,-460.0,0.00020502,2]
[378478584,1754880652565,-460.0,0.00020503,2]
[378478585,1754880652574,-4487.04,0.00020505,2]
[378478586,1754880652584,-460.0,0.00020776,2]
[378478587,1754880652593,-460.0,0.00020777,2]
[378478588,1754880652603,-4487.04,0.00020779,2]
[378478589,1754880652612,-460.0,0.0002105,2]
[378478590,1754880652622,-460.0,0.00021051,2]
[378478591,1754880652631,-4487.04,0.00021053,2]
[378478592,1754880652640,-460.0,0.00021324,2]
[378478593,1754880652650,-460.0,0.00021325,2]
[378478594,1754880652660,-4487.04,0.00021327,2]
[378478595,1754880652669,-460.0,0.00021598,2]
[378478596,1754880652679,-460.0,0.00021599,2]
[378478597,1754880652689,-4487.04,0.00021601,2]
[378478598,1754880652699,-460.0,0.00021872,2]
[378478599,1754880652710,-4487.04,0.00021875,2]
[378478600,1754880652720,-460.0,0.00022146,2]
[378478601,1754880652729,-4487.04,0.00022149,2]
[378478602,1754880652740,-460.0,0.0002242,2]
[378478603,1754880652749,-4487.04,0.00022423,2]
[378478604,1754880652760,-460.0,0.00022694,2]
[378478605,1754880652777,-460.0,0.00022968,2]
[378478606,1754880652787,-460.0,0.00023242,2]
[378478607,1754880652797,-460.0,0.00023516,2]
[378478608,1754880652808,-460.0,0.0002379,2]
[378478609,1754880652818,-4802.30069266,0.00024,2]
[378478610,1754880652932,461.07186454,0.00019953,2]
[378478611,1754880652985,460.0,0.00019953,2]
[378478612,1754880652998,-282.72,0.00019956,2]
[378478613,1754880653009,-320.92,0.00019956,2]
[378478614,1754880653019,-3782.7,0.00021044,10]
[378478615,1754880653029,-460.0,0.00021873,2]
[378478616,1754880653038,-460.0,0.00022147,2]
[378478617,1754880653048,-460.0,0.00022421,2]
[378478618,1754880653057,-460.0,0.00022695,2]
[378478619,1754880653066,-4487.04,0.00022697,2]
[378478620,1754880653076,-4310.5602871,0.00022971,2]
[378478621,1754880653088,-176.4797129,0.00022971,2]
[378478622,1754880653097,-656.65691518,0.00023245,2]
[378478623,1754880653109,-1025.62853026,0.00023245,2]
[378478624,1754880653327,460.0,0.00019953,2]
[378478625,1754880653814,169.13215375,0.00019953,2]
[378478626,1754880677021,460.0,0.00019953,2]
[378478627,1754880680862,460.0,0.00019953,2]
[378478628,1754880682289,523.45150031,0.00019953,2]
[378478629,1754880688019,461.12768324,0.00019953,2]
[378478630,1754880690453,460.0,0.00019953,2]
[378478631,1754880695121,461.75041885,0.00019953,2]
[378478632,1754880696468,500.0,0.00019953,2]
[378478633,1754880696605,1200.0,0.00019953,2]
[378478634,1754880699516,460.89097462,0.00019953,2]
[378478635,1754880701397,460.0,0.00019953,2]
[378478636,1754880703406,460.0,0.00019953,2]
[378478637,1754880704691,460.0,0.00019953,2]
[378478638,1754880707372,491.49864725,0.00019953,2]
[378478639,1754880707666,460.0,0.00019953,2]
[378478640,1754880709583,460.0,0.00019953,2]
[378478641,1754880711176,460.0,0.00019953,2]
[378478642,1754880711597,460.0,0.00019953,2]
[378478643,1754880717288,460.0,0.00019953,2]
[378478644,1754880722220,1042.08,0.00019953,2]
[378478645,1754880723374,460.0,0.00019953,2]
[378478646,1754880723648,300.0,0.00019953,2]
[378478647,1754880728739,461.22014118,0.00019953,2]
[378478648,1754880731016,460.32426386,0.00019953,2]
[378478649,1754880733327,578.87271539,0.00019953,2]
[378478650,1754880735306,460.0,0.00019953,2]
[378478651,1754880747428,460.0,0.00019953,2]
[378478653,1754880762460,1026.44,0.00019953,2]
[378478654,1754880763244,1019.87,0.00019953,2]
[378478656,1754880769107,3032.99426115,0.000199,2]
[378478657,1754880780560,460.0,0.00019953,2]
[378478658,1754880781130,460.0,0.00019953,2]
[378478659,1754880782492,300.0,0.00019953,2]
[378478660,1754880785168,460.0,0.00019953,2]
[378478661,1754880792507,463.13489622,0.00019953,2]
[378478662,1754880794437,460.0,0.00019953,2]
[378478663,1754880795218,460.0,0.00019953,2]
[378478665,1754880800757,460.0,0.00019953,2]
[378478666,1754880822472,460.0,0.00019953,2]
[378478667,1754880823305,460.0,0.00019953,2]
[378478668,1754880826478,460.0,0.00019953,2]
[378478669,1754880830069,460.0,0.00019953,2]
[378478670,1754880842493,300.0,0.00019953,2]
[378478671,1754880844042,460.0,0.00019953,2]
[378478672,1754880850841,460.0,0.00019953,2]
[378478673,1754880857543,460.0,0.00019953,2]
[378478674,1754880867607,460.0,0.00019953,2]
[378478677,1754880883226,460.0,0.00019953,2]
[378478678,1754880887353,551.86,0.00019953,2]
[378478679,1754880890408,200.893072,0.00013699,2]
[378478680,1754880902629,208.0,0.00019953,2]
[378478681,1754880903314,460.0,0.00019953,2]
[378478682,1754880905579,1200.0,0.00019953,2]
[378478683,1754880911842,1450.99,0.00019953,2]
[378478684,1754880929601,460.0,0.00019953,2]
[378478685,1754880929696,460.0,0.00019953,2]
[378478687,1754880953261,1168.05,0.00019953,2]
[378478688,1754880974115,3041.47027627,0.000199,2]
[378478689,1754880979073,460.0,0.00019953,2]
[378478690,1754880981824,460.0,0.00019953,2]
[378478691,1754880984648,460.0,0.00019953,2]
[378478692,1754880991700,150.0,0.0002792,30]
[378478693,1754880997492,1200.0,0.00019953,2]
[378478694,1754881001496,1262.87,0.00019953,2]
[378478696,1754881013735,460.0,0.00019953,2]
[378478697,1754881023156,300.0,0.00019953,2]
[378478698,1754881024693,460.0,0.00019953,2]
[378478699,1754881027279,294.9153123,0.00019953,2]
[378478700,1754881028992,415.38880565,0.00019953,2]
[378478701,1754881030378,460.0,0.00019953,2]
[378478702,1754881031640,460.0,0.00019953,2]
[378478704,1754881035823,24900.0,0.00019091,2]
[378478705,1754881037453,460.0,0.00019953,2]
[378478706,1754881049724,460.0,0.00019953,2]
[378478708,1754881051182,1247.28,0.00019953,2]
[378478709,1754881053208,460.0,0.00019953,2]
[378478710,1754881057134,690.97,0.00019953,2]
[378478711,1754881065922,460.0,0.00019953,2]
[378478712,1754881076723,460.0,0.00019953,2]
[378478713,1754881078764,460.0,0.00019953,2]
[378478714,1754881082101,460.0,0.00019953,2]
[378478715,1754881083549,300.0,0.00019953,2]
[378478716,1754881099657,595.03,0.00019953,2]
[378478717,1754881106287,360.76747178,0.00019953,2]
[378478719,1754881116226,460.0,0.00019953,2]
[378478720,1754881118159,460.0,0.00019953,2]
[378478722,1754881123261,460.0,0.00019953,2]
[378478723,1754881124027,460.0,0.00019953,2]
[378478724,1754881137818,460.0,0.00019953,2]
[378478725,1754881139972,460.0,0.00019953,2]
[378478726,1754881142191,641.26,0.00019953,2]
[378478727,1754881142996,300.0,0.00019953,2]
[378478728,1754881151472,3518.8595291,0.000199,2]
[378478729,1754881152491,460.0,0.00019953,2]
[378478730,1754881159894,478.39,0.00019953,2]
[378478731,1754881165227,460.0,0.00019953,2]
[378478732,1754881165563,460.0,0.00019953,2]
[378478733,1754881172319,1364.11,0.00019953,2]
[378478734,1754881176144,460.0,0.00019953,2]
[378478735,1754881178407,460.0,0.00019953,2]
[378478736,1754881178480,607.55705591,0.00019953,2]
[378478737,1754881180421,460.0,0.00019953,2]
[378478738,1754881181982,461.40460233,0.00019953,2]
[378478739,1754881183286,460.0,0.00019953,2]
[378478740,1754881183614,460.0,0.00019953,2]
[378478741,1754881185171,460.0,0.00019953,2]
[378478742,1754881185368,460.0,0.00019953,2]
[378478743,1754881189179,460.0,0.00019953,2]
[378478744,1754881198456,460.0,0.00019953,2]
[378478745,1754881202783,300.0,0.00019953,2]
[378478746,1754881203341,460.0,0.00019953,2]
[378478747,1754881204251,465.376827,0.00019953,2]
[378478749,1754881208336,1200.0,0.00019953,2]
[378478750,1754881208947,460.0,0.00019953,2]
[378478751,1754881213234,460.0,0.00019953,2]
[378478752,1754881215082,460.0,0.00019953,2]
[378478753,1754881215133,150.0,0.00027856,30]
[378478754,1754881217394,460.0,0.00019953,2]
[378478755,1754881218065,460.0,0.00019953,2]
[378478756,1754881218931,460.0,0.00019953,2]
[378478757,1754881219207,565.11055204,0.00019953,2]
[378478759,1754881222559,375.23,0.00019953,2]
[378478760,1754881222813,460.0,0.00019953,2]
[378478761,1754881224524,460.0,0.00019953,2]
[378478762,1754881224925,460.0,0.00019953,2]
[378478763,1754881231768,460.0,0.00019953,2]
[378478764,1754881246059,460.0,0.00019953,2]
[378478765,1754881247096,500.23526554,0.00019953,2]
[378478766,1754881247769,460.0,0.00019953,2]
[378478767,1754881252813,462.68104169,0.00019953,2]
[378478768,1754881256191,460.0,0.00019953,2]
[378478769,1754881258003,460.0,0.00019953,2]
[378478770,1754881259194,460.0,0.00019953,2]
[378478771,1754881259923,460.0,0.00019953,2]
[378478772,1754881260534,461.28153734,0.00019953,2]
[378478773,1754881261304,1243.34081438,0.00019953,2]
[378478774,1754881266550,460.0,0.00019953,2]
[378478775,1754881266681,300.0,0.00019953,2]
[378478776,1754881269468,460.0,0.00019953,2]
[378478777,1754881272183,460.0,0.00019953,2]
[378478778,1754881273509,460.71492346,0.00019953,2]
[378478779,1754881274959,500.0,0.00019953,2]
[378478780,1754881275346,460.0,0.00019953,2]
[378478781,1754881277463,460.0,0.00019953,2]
[378478782,1754881279493,462.55946172,0.00019953,2]
[378478783,1754881281463,460.0,0.00019953,2]
[378478784,1754881283419,483.97,0.00019953,2]
[378478785,1754881285145,758.29,0.00019953,2]
[378478786,1754881285591,460.0,0.00019953,2]
[378478787,1754881288601,469.4986355,0.00019953,2]
[378478788,1754881291000,1003.05,0.00019953,2]
[378478789,1754881291641,460.45981549,0.00019953,2]
[378478790,1754881291818,460.0,0.00019953,2]
[378478791,1754881292782,460.0,0.00019953,2]
[378478792,1754881295388,317.53025427,0.00019953,2]
[378478793,1754881295450,460.0,0.00019953,2]
[378478794,1754881295850,461.83172692,0.00019953,2]
[378478795,1754881296649,150.0,0.00026918,30]
[378478796,1754881297101,1200.0,0.00019953,2]
[378478797,1754881297268,828.79589218,0.00019857,2]
[378478798,1754881297580,461.11397448,0.00019953,2]
[378478799,1754881301711,460.0,0.00019953,2]
[378478800,1754881305233,460.0,0.00019953,2]
[378478801,1754881308916,577.26,0.00019953,2]
[378478802,1754881310631,10000.0,0.00019953,2]
[378478803,1754881310862,462.43296784,0.00019953,2]
[378478804,1754881313068,460.70762003,0.00019953,2]
[378478805,1754881316765,460.0,0.00019953,2]
[378478806,1754881317325,460.0,0.00019953,2]
[378478807,1754881318739,460.0,0.00019953,2]
[378478808,1754881320201,460.0,0.00019953,2]
[378478809,1754881322464,300.0,0.00019953,2]
[378478810,1754881325083,1973.95,0.00019953,2]
[378478811,1754881328220,701.63,0.00019953,2]
[378478812,1754881331030,869.81,0.00019953,2]
[378478813,1754881332801,460.0,0.00019953,2]
[378478814,1754881337475,3401.56421156,0.000199,2]
[378478815,1754881341855,460.0,0.00019953,2]
[378478817,1754881357597,524.05,0.00019953,2]
[378478818,1754881380900,150.0,0.00027543,30]
[378478819,1754881382329,156.0,0.00019953,2]
[378478820,1754881401163,1371.8,0.00019953,2]
[378478821,1754881403731,578.54322367,0.00019953,2]
[378478822,1754881416128,460.0,0.00019953,2]
[378478823,1754881430290,935.8,0.00019953,2]
[378478824,1754881439494,460.0,0.00019953,2]
[378478825,1754881455084,534.57,0.00019953,2]
[378478826,1754881488415,725.19640571,0.00019857,2]
[378478827,1754881489474,460.0,0.00019953,2]
[378478828,1754881504528,300.0,0.00019953,2]
[378478829,1754881513153,1200.0,0.00019953,2]
[378478830,1754881513270,1080.9,0.00019953,2]
[378478831,1754881518610,3395.11264634,0.000199,2]
[378478832,1754881521310,460.0,0.00019953,2]
[378478833,1754881526507,460.0,0.00019953,2]
[378478835,1754881551298,6239.8479502,0.00019057,2]
[378478836,1754881565013,1272.94416711,0.00019953,2]
[378478837,1754881567391,1091.09500038,0.00019953,2]
[378478838,1754881568616,935.22428604,0.00019953,2]
[378478839,1754881569710,801.6208166,0.00019953,2]
[378478840,1754881573132,687.10355709,0.00019953,2]
[378478841,1754881574066,588.94590608,0.00019953,2]
[378478842,1754881575337,504.81077664,0.00019953,2]
[378478843,1754881576451,432.6949514,0.00019953,2]
[378478844,1754881577382,370.88138692,0.00019953,2]
[378478845,1754881580470,317.89833164,0.00019953,2]
[378478846,1754881581285,272.48428427,0.00019953,2]
[378478847,1754881584532,233.55795794,0.00019953,2]
[378478848,1754881585423,200.19253538,0.00019953,2]
[378478849,1754881585840,460.0,0.00019953,2]
[378478850,1754881586307,171.59360175,0.00019953,2]
[378478851,1754881587194,151.0,0.00019953,2]
[378478852,1754881592590,460.0,0.00019953,2]
[378478853,1754881597602,1200.0,0.00019953,2]
[378478855,1754881645912,2190.0,0.00031327,30]
[378478856,1754881646131,151.0,0.00019953,2]
[378478857,1754881663541,505.75783185,0.00019953,2]
[378478858,1754881678133,460.0,0.00019953,2]
[378478859,1754881678584,701.83491985,0.00019855,2]
[378478860,1754881698450,460.0,0.00019953,2]
[378478861,1754881715142,525.24822642,0.00019953,2]
[378478862,1754881722423,3282.93878083,0.000199,2]
[378478863,1754881725227,310.22729621,0.000189,2]
[378478868,1754881738310,568.86,0.00019953,2]
[378478869,1754881746882,460.0,0.00019953,2]
[378478870,1754881754932,460.0,0.00019953,2]
[378478871,1754881755654,429.18353589,0.00019953,2]
[378478872,1754881760907,460.0,0.00019953,2]
[378478874,1754881779071,460.0,0.00019953,2]
[378478876,1754881793137,460.0,0.00019953,2]
[378478877,1754881805231,150.0,0.00027487,30]
[378478878,1754881806822,1112.0,0.00019953,2]
[378479285,1754881835914,2894.8,0.00019953,2]
[378479390,1754881836974,190.848418,0.00013699,2]
[378479515,1754881838202,-160.0,0.00019954,2]
[378479516,1754881838213,-460.0,0.00019954,2]
[378479517,1754881838225,-744.32,0.00019954,2]
[378479518,1754881838234,-500.0,0.00019954,2]
[378479519,1754881838245,-460.0,0.00019954,2]
[378479520,1754881838254,-460.0,0.00019954,2]
[378479521,1754881838264,-463.14004651,0.00019954,2]
[378479522,1754881838273,-322.58037375,0.00019954,2]
[378479523,1754881838284,-460.0,0.00019954,2]
[378479524,1754881838295,-460.0,0.00019954,2]
[378479525,1754881838304,-460.0,0.00019954,2]
[378479526,1754881838313,-462.95751313,0.00019954,2]
[378479527,1754881838322,-460.0,0.00019954,2]
[378479528,1754881838332,-1002.6,0.00019954,2]
[378479529,1754881838341,-460.0,0.00019954,2]
[378479530,1754881838350,-1751.23,0.00019954,2]
[378479531,1754881838359,-779.44,0.00019954,2]
[378479532,1754881838369,-500.0,0.00019954,2]
[378479533,1754881838379,-460.0,0.00019955,2]
[378479534,1754881838390,-460.0,0.00019955,2]
[378479535,1754881838400,-500.0,0.00019955,2]
[378479536,1754881838409,-500.0,0.00019955,2]
[378479537,1754881838418,-500.0,0.00019955,2]
[378479538,1754881838427,-460.0,0.00019955,2]
[378479539,1754881838437,-460.0,0.00019955,2]
[378479540,1754881838446,-460.0,0.00019955,2]
[378479541,1754881838455,-167.0913169,0.00019955,2]
[378479542,1754881838464,-460.0,0.00019955,2]
[378479543,1754881838474,-2521.29,0.00019955,2]
[378479544,1754881838483,-760.0,0.00019955,2]
[378479545,1754881838493,-500.0,0.00019955,2]
[378479546,1754881838502,-592.78,0.00019955,2]
[378479548,1754881838511,-268.58,0.00019955,2]
[378479550,1754881838520,-460.0,0.00019955,2]
[378479552,1754881838529,-460.0,0.00019955,2]
[378479554,1754881838538,-1794.97,0.00019955,2]
[378479556,1754881838548,-460.0,0.00019955,2]
[378479558,1754881838557,-1687.53,0.00019955,2]
[378479560,1754881838567,-460.0,0.00019955,2]
[378479562,1754881838576,-1896.5,0.00019955,2]
[378479564,1754881838585,-519.64,0.00019955,2]
[378479566,1754881838594,-460.0,0.00019955,2]
[378479568,1754881838603,-1876.17,0.00019955,2]
[378479570,1754881838612,-460.0,0.00019955,2]
[378479571,1754881838623,-460.0,0.00019955,2]
[378479574,1754881838633,-553.4,0.00019955,2]
[378479575,1754881838643,-460.0,0.00019955,2]
[378479577,1754881838653,-460.0,0.00019955,2]
[378479579,1754881838662,-460.0,0.00019955,2]
[378479581,1754881838672,-460.0,0.00019955,2]
[378479583,1754881838682,-460.0,0.00019955,2]
[378479585,1754881838691,-460.0,0.00019955,2]
[378479587,1754881838700,-494.42,0.00019955,2]
[378479589,1754881838710,-460.0,0.00019955,2]
[378479591,1754881838719,-460.0,0.00019955,2]
[378479593,1754881838729,-538.23,0.00019955,2]
[378479595,1754881838739,-460.0,0.00019955,2]
[378479597,1754881838748,-460.0,0.00019955,2]
[378479599,1754881838757,-460.0,0.00019955,2]
[378479601,1754881838767,-473.72409871,0.00019955,2]
[378479603,1754881838776,-460.0,0.00019955,2]
[378479605,1754881838785,-469.20563778,0.00019955,2]
[378479607,1754881838795,-460.0,0.00019955,2]
[378479609,1754881838804,-460.0,0.00019955,2]
[378479611,1754881838813,-460.0,0.00019955,2]
[378479613,1754881838824,-460.0,0.00019955,2]
[378479615,1754881838834,-1238.3,0.00019955,2]
[378479617,1754881838843,-933.05,0.00019955,2]
[378479619,1754881838853,-479.84414497,0.00019955,2]
[378479621,1754881838863,-460.0,0.00019955,2]
[378479623,1754881838872,-500.0,0.00019956,2]
[378479625,1754881838881,-492.24220567,0.00019956,2]
[378479627,1754881838891,-1354.91,0.00019956,2]
[378479629,1754881838900,-752.06,0.00019956,2]
[378479631,1754881838910,-460.0,0.00019956,2]
[378479633,1754881838919,-460.0,0.00019956,2]
[378479635,1754881838929,-461.19904539,0.00019956,2]
[378479637,1754881838939,-1674.58,0.00019956,2]
[378479639,1754881838948,-1819.13,0.00019956,2]
[378479641,1754881838959,-500.0,0.00019958,2]
[378479643,1754881838968,-319.98230024,0.00019958,2]
[378479645,1754881838981,-190.848418,0.00020187,2]
[378479647,1754881838991,-294.13396904,0.00020226,2]
[378479649,1754881839001,-422.79721677,0.00020226,2]
[378479651,1754881839011,-319.12702355,0.00020226,2]
[378479653,1754881839020,-301.21806636,0.00020226,2]
[378479655,1754881839029,-335.22086266,0.00020226,2]
[378479657,1754881839040,-533.29584823,0.00020226,2]
[378479659,1754881839049,-460.0,0.00020227,2]
[378479661,1754881839058,-558.83498506,0.00020227,2]
[378479663,1754881839068,-460.0,0.00020227,2]
[378479665,1754881839078,-460.0,0.00020227,2]
[378479667,1754881839087,-460.0,0.00020227,2]
[378479669,1754881839096,-460.0,0.00020227,2]
[378479671,1754881839106,-460.0,0.00020227,2]
[378479673,1754881839116,-605.32698623,0.00020227,2]
[378479675,1754881839126,-758.29,0.00020227,2]
[378479677,1754881839137,-460.0,0.00020227,2]
[378479679,1754881839146,-460.0,0.00020227,2]
[378479681,1754881839155,-210.57,0.00020227,2]
[378479683,1754881839164,-460.0,0.00020227,2]
[378479685,1754881839173,-935.8,0.00020227,2]
[378479687,1754881839183,-475.0989461,0.00020227,2]
[378479689,1754881839194,-460.0,0.00020227,2]
[378479691,1754881839206,-460.0,0.00020227,2]
[378479693,1754881839215,-937.38,0.00020227,2]
[378479695,1754881839224,-460.0,0.00020227,2]
[378479697,1754881839235,-460.0,0.00020227,2]
[378479698,1754881839245,-460.0,0.00020227,2]
[378479700,1754881839254,-559.56,0.00020227,2]
[378479702,1754881839263,-460.0,0.00020227,2]
[378479705,1754881839275,-460.0,0.00020227,2]
[378479706,1754881839286,-460.0,0.00020227,2]
[378479708,1754881839297,-579.00536804,0.00020227,2]
[378479711,1754881839309,-460.0,0.00020227,2]
[378479713,1754881839326,-243.33110462,0.00020227,2]
[378479715,1754881839336,-2894.8,0.00020227,2]
[378479717,1754881839345,-744.32,0.00020228,2]
[378479719,1754881839356,-460.0,0.00020228,2]
[378479721,1754881839367,-281.73,0.00020228,2]
[378479723,1754881839379,-460.0,0.00020228,2]
[378479725,1754881839391,-460.0,0.00020228,2]
[378479727,1754881839403,-1002.6,0.00020228,2]
[378479729,1754881839414,-1751.23,0.00020228,2]
[378479730,1754881839426,-779.44,0.00020228,2]
[378479732,1754881839437,-460.0,0.00020229,2]
[378479734,1754881839449,-460.0,0.00020229,2]
[378479736,1754881839461,-460.0,0.00020229,2]
[378479738,1754881839475,-2521.29,0.00020229,2]
[378479740,1754881839487,-760.0,0.00020229,2]
[378479742,1754881839498,-592.78,0.00020229,2]